fUSD/lending_fUSD_20260509
["ID","MTS","AMOUNT","RATE_DAILY","PERIOD"]
[421873847,1778261029000,-531.08163844,0.00014498,2]
[421873849,1778261029000,-508.25050842,0.00014498,2]
[421873865,1778261030000,-500.0,0.00014498,2]
[421873868,1778261030000,-500.0,0.00014498,2]
[421873870,1778261030000,-500.0,0.00014498,2]
[421873871,1778261030000,-500.0,0.00014498,2]
[421873869,1778261030000,-500.0,0.00014498,2]
[421873867,1778261030000,-500.0,0.00014498,2]
[421873866,1778261030000,-500.0,0.00014498,2]
[421873873,1778261030000,-500.0,0.00014498,2]
[421873864,1778261030000,-500.0,0.00014498,2]
[421873862,1778261030000,-500.0,0.00014498,2]
[421873861,1778261030000,-500.0,0.00014498,2]
[421873859,1778261030000,-500.0,0.00014498,2]
[421873860,1778261030000,-500.0,0.00014498,2]
[421873857,1778261030000,-500.0,0.00014498,2]
[421873856,1778261030000,-500.0,0.00014498,2]
[421873863,1778261030000,-436.35338027,0.00014498,2]
[421873858,1778261030000,-500.0,0.00014498,2]
[421873872,1778261030000,-500.0,0.00014498,2]
[421873874,1778261030000,-500.0,0.00014498,2]
[421873875,1778261030000,-500.0,0.00014498,2]
[421873892,1778261030000,-500.0,0.00014498,2]
[421873893,1778261030000,-500.0,0.00014498,2]
[421873890,1778261030000,-500.0,0.00014498,2]
[421873889,1778261030000,-500.0,0.00014498,2]
[421873888,1778261030000,-500.0,0.00014498,2]
[421873887,1778261030000,-500.0,0.00014498,2]
[421873886,1778261030000,-500.0,0.00014498,2]
[421873884,1778261030000,-500.0,0.00014498,2]
[421873891,1778261030000,-500.0,0.00014498,2]
[421873882,1778261030000,-500.0,0.00014498,2]
[421873883,1778261030000,-500.0,0.00014498,2]
[421873881,1778261030000,-500.0,0.00014498,2]
[421873880,1778261030000,-500.0,0.00014498,2]
[421873879,1778261030000,-500.0,0.00014498,2]
[421873878,1778261030000,-500.0,0.00014498,2]
[421873877,1778261030000,-500.0,0.00014498,2]
[421873876,1778261030000,-500.0,0.00014498,2]
[421873885,1778261030000,-500.0,0.00014498,2]
[421873906,1778261031000,-500.0,0.00014498,2]
[421873904,1778261031000,-550.0,0.00014498,2]
[421873903,1778261031000,-500.0,0.00014498,2]
[421873901,1778261031000,-500.0,0.00014498,2]
[421873902,1778261031000,-500.0,0.00014498,2]
[421873897,1778261031000,-500.0,0.00014498,2]
[421873899,1778261031000,-500.0,0.00014498,2]
[421873895,1778261031000,-500.0,0.00014498,2]
[421873898,1778261031000,-500.0,0.00014498,2]
[421873896,1778261031000,-500.0,0.00014498,2]
[421873894,1778261031000,-500.0,0.00014498,2]
[421873905,1778261031000,-500.0,0.00014498,2]
[421873900,1778261031000,-500.0,0.00014498,2]
[421873907,1778261031000,-500.0,0.00014498,2]
[421873912,1778261031000,-500.0,0.00014498,2]
[421873909,1778261031000,-500.0,0.00014498,2]
[421873921,1778261031000,-685.833,0.00014498,2]
[421873922,1778261031000,-8022.62516535,0.00014499,2]
[421873908,1778261031000,-500.0,0.00014498,2]
[421873919,1778261031000,-500.0,0.00014498,2]
[421873918,1778261031000,-500.0,0.00014498,2]
[421873917,1778261031000,-500.0,0.00014498,2]
[421873920,1778261031000,-155.0,0.00014498,2]
[421873916,1778261031000,-500.0,0.00014498,2]
[421873914,1778261031000,-255.0,0.00014498,2]
[421873913,1778261031000,-500.0,0.00014498,2]
[421873911,1778261031000,-500.0,0.00014498,2]
[421873910,1778261031000,-500.0,0.00014498,2]
[421873915,1778261031000,-500.0,0.00014498,2]
[421873924,1778261032000,-50000.0,0.00014499,2]
[421873923,1778261032000,-50000.0,0.00014499,2]
[421873927,1778261081000,200.0,0.00013737,2]
[421873928,1778261104000,150.0,0.00013715,2]
[421873929,1778261114000,200.0,6.858e-05,2]
[421873930,1778261136000,259.08,0.00013749,2]
[421873931,1778261223000,156.52,0.0001374,2]
[421873932,1778261251000,500.0,0.000138,5]
[421873933,1778261253000,1000.0,0.000139,5]
[421873934,1778261392000,97280.0,0.0003013,120]
[421873935,1778261426000,152.0,0.00013953,2]
[421873944,1778261431000,-250.0,0.00014398,2]
[421873941,1778261431000,-300.0,0.00014398,2]
[421873938,1778261431000,-163.16661888,0.00014398,2]
[421873937,1778261431000,-632.63246963,0.00014398,2]
[421873943,1778261431000,-150.0,0.00014398,2]
[421873939,1778261431000,-500.0,0.00014398,2]
[421873936,1778261431000,-281.68799649,0.00014398,2]
[421873942,1778261431000,-1017.0,0.00014398,2]
[421873940,1778261431000,-221.75714691,0.00014398,2]
[421873946,1778261432000,-9812.7996,0.00014399,2]
[421873945,1778261432000,-2926.9968,0.00014399,2]
[421873949,1778261432000,-30011.31164888,0.00014399,2]
[421873947,1778261432000,-2724.65181835,0.00014399,2]
[421873950,1778261432000,-0.7695,0.00014399,2]
[421873948,1778261432000,-2275.34818165,0.00014399,2]
[421873953,1778261433000,-359187.33502565,0.00014399,2]
[421873954,1778261433000,-721.1518257,0.00014399,2]
[421873952,1778261433000,-3464.11972123,0.00014399,2]
[421873951,1778261433000,-544.144535,0.00014399,2]
[421873982,1778261437000,-413.81982551,0.00014398,2]
[421873984,1778261437000,-500.0,0.00014398,2]
[421873981,1778261437000,-319.62248722,0.00014398,2]
[421873983,1778261437000,-86.18017449,0.00014398,2]
[421873987,1778261437000,-499.74067399,0.00014398,2]
[421873986,1778261437000,-0.25932601,0.00014398,2]
[421873985,1778261437000,-500.0,0.00014398,2]
[421874009,1778261438000,-1420.54498649,0.00014498,2]
[421874014,1778261438000,-500.0,0.00014498,2]
[421874010,1778261438000,-516.94609672,0.00014498,2]
[421874012,1778261438000,-500.0,0.00014498,2]
[421874006,1778261438000,-2409.56911685,0.00014399,2]
[421874007,1778261438000,-1809.82321448,0.00014455,2]
[421874004,1778261438000,-1809.82321448,0.00014399,2]
[421874005,1778261438000,-405.7196665,0.00014399,2]
[421874003,1778261438000,-3425.54637124,0.00014399,2]
[421873997,1778261438000,-873.39,0.00014399,2]
[421873998,1778261438000,-26491.54762082,0.00014399,2]
[421873996,1778261438000,-1172.96774003,0.00014399,2]
[421874001,1778261438000,-570503.24788418,0.00014399,2]
[421873999,1778261438000,-380.52932165,0.00014399,2]
[421874002,1778261438000,-462.76550922,0.00014399,2]
[421873994,1778261438000,-500.0,0.00014398,2]
[421873995,1778261438000,-2279.71509151,0.00014399,2]
[421873992,1778261438000,-500.0,0.00014398,2]
[421873989,1778261438000,-500.0,0.00014398,2]
[421873991,1778261438000,-500.0,0.00014398,2]
[421873993,1778261438000,-500.0,0.00014398,2]
[421873988,1778261438000,-500.0,0.00014398,2]
[421873990,1778261438000,-471.32383781,0.00014398,2]
[421874000,1778261438000,-8100.61258535,0.00014399,2]
[421874013,1778261438000,-500.0,0.00014498,2]
[421874011,1778261438000,-500.0,0.00014498,2]
[421874016,1778261438000,-1000.0,0.00014499,2]
[421874008,1778261438000,-2409.56911683,0.00014455,2]
[421874047,1778261438000,-750.97674804,0.0001462,2]
[421874043,1778261438000,-4481.61025156,0.0001462,2]
[421874041,1778261438000,-500.0,0.00014619,2]
[421874032,1778261438000,-1809.82321448,0.00014566,2]
[421874034,1778261438000,-2409.56911683,0.00014566,2]
[421874031,1778261438000,-2409.56911683,0.0001451,2]
[421874039,1778261438000,-184.96,0.00014613,2]
[421874035,1778261438000,-71.85489658,0.000146,5]
[421874037,1778261438000,-1428.14510342,0.000146,5]
[421874029,1778261438000,-500.0,0.00014502,7]
[421874030,1778261438000,-1809.82321448,0.0001451,2]
[421874033,1778261438000,-405.71966649,0.00014566,2]
[421874020,1778261438000,-1000.0,0.00014499,2]
[421874021,1778261438000,-1000.0,0.00014499,2]
[421874019,1778261438000,-1000.0,0.00014499,2]
[421874017,1778261438000,-1000.0,0.00014499,2]
[421874018,1778261438000,-1000.0,0.00014499,2]
[421874027,1778261438000,-17611.5039966,0.00014499,2]
[421874023,1778261438000,-889.5287457,0.00014499,2]
[421874024,1778261438000,-221.59415934,0.00014499,2]
[421874025,1778261438000,-353.51446558,0.00014499,2]
[421874022,1778261438000,-205.89508693,0.00014499,2]
[421874015,1778261438000,-150.0,0.00014498,2]
[421874026,1778261438000,-500.0,0.00014499,2]
[421874028,1778261438000,-141431.2936,0.000145,2]
[421874230,1778261439000,-474.50808334,0.0001462,2]
[421874233,1778261439000,-16242.86988326,0.0001462,2]
[421874273,1778261440000,-405.71966649,0.00014733,2]
[421874287,1778261440000,-1190.0,0.00014833,5]
[421874277,1778261440000,-1809.82321448,0.00014789,2]
[421874281,1778261440000,-151.0,0.000148,2]
[421874283,1778261440000,-151.0,0.000148,2]
[421874285,1778261440000,-2600.0,0.000148,5]
[421874279,1778261440000,-2409.56911683,0.00014789,2]
[421874258,1778261440000,-1809.82321448,0.00014677,2]
[421874262,1778261440000,-2100.0,0.000147,5]
[421874275,1778261440000,-2409.56911683,0.00014733,2]
[421874256,1778261440000,-500.0,0.00014673,2]
[421874267,1778261440000,-500.0,0.00014731,2]
[421874260,1778261440000,-2409.56911683,0.00014677,2]
[421874237,1778261440000,-109915.8128264,0.0001462,2]
[421874253,1778261440000,-500.0,0.00014673,2]
[421874271,1778261440000,-1809.82321448,0.00014733,2]
[421874269,1778261440000,-414.383464,0.00014731,2]
[421874254,1778261440000,-500.0,0.00014673,2]
[421874251,1778261440000,-500.0,0.00014673,2]
[421874249,1778261440000,-500.0,0.00014673,2]
[421874247,1778261440000,-501.30095539,0.00014673,2]
[421874243,1778261440000,-4043.13539093,0.00014645,2]
[421874235,1778261440000,-1121.2913523,0.0001462,2]
[421874241,1778261440000,-2409.56911683,0.00014622,2]
[421874245,1778261440000,-164.30836733,0.00014673,2]
[421874239,1778261440000,-1809.82321448,0.00014622,2]
[421874264,1778261440000,-200.0,0.00014731,2]
[421874291,1778261440000,-1809.82321448,0.00014844,2]
[421874289,1778261440000,-1193.0,0.00014833,5]
[421874294,1778261440000,-500.0,0.00014849,2]
[421874358,1778261440000,-7593.808309,0.00015,2]
[421874355,1778261440000,-83883.99322928,0.00015,2]
[421874348,1778261440000,-559.505,0.00015,2]
[421874338,1778261440000,-18195.46065201,0.00015,2]
[421874344,1778261440000,-1150.25,0.00015,2]
[421874342,1778261440000,-3532.0,0.00015,2]
[421874336,1778261440000,-1950437.01916268,0.00015,2]
[421874340,1778261440000,-1797.07988054,0.00015,2]
[421874334,1778261440000,-163.0,0.00015,2]
[421874332,1778261440000,-500.0,0.00014999,2]
[421874330,1778261440000,-500.0,0.00014999,2]
[421874328,1778261440000,-151.0,0.00014999,2]
[421874326,1778261440000,-151.0,0.00014999,2]
[421874324,1778261440000,-151.0,0.00014997,2]
[421874292,1778261440000,-2409.56911683,0.00014844,2]
[421874320,1778261440000,-14162.12442445,0.00014945,2]
[421874322,1778261440000,-151.0,0.00014997,2]
[421874296,1778261440000,-223.04056798,0.000149,2]
[421874300,1778261440000,-1809.82321448,0.000149,2]
[421874298,1778261440000,-500.0,0.000149,5]
[421874312,1778261440000,-151.0,0.00014945,2]
[421874310,1778261440000,-151.0,0.00014945,2]
[421874302,1778261440000,-2409.56911683,0.000149,2]
[421874316,1778261440000,-151.0,0.00014945,2]
[421874305,1778261440000,-539.64580154,0.000149,2]
[421874318,1778261440000,-151.0,0.00014945,2]
[421874306,1778261440000,-151.0,0.00014945,2]
[421874309,1778261440000,-151.0,0.00014945,2]
[421874314,1778261440000,-151.0,0.00014945,2]
[421874707,1778261443000,-534.83828611,0.00015,2]
[421874672,1778261443000,-322.94797957,0.00015,2]
[421874985,1778261445000,-3452.80842712,0.00015,2]
[421875012,1778261446000,-4265.47335082,0.00015,2]
[421875020,1778261446000,-704.90389033,0.00015,2]
[421875042,1778261446000,-11724.62628499,0.00015,2]
[421875022,1778261446000,-742371.25948843,0.00015,2]
[421875015,1778261446000,-3967.46044961,0.00015,2]
[421875040,1778261446000,-183305.18853044,0.00015,2]
[421875656,1778261580000,-7952.8,0.00014299,2]
[421875657,1778261711000,156.52,0.00013699,2]
[421875658,1778261802000,200.0,0.000138,5]
[421875659,1778261804000,400.0,0.000139,5]
[421875663,1778261828000,250.0,0.00014,2]
[421875669,1778261934000,153.79,7.388e-05,2]
[421875668,1778261934000,153.79,6.895e-05,2]
[421875673,1778261935000,153.79,9.358e-05,2]
[421875672,1778261935000,153.79,8.865e-05,2]
[421875671,1778261935000,153.79,8.373e-05,2]
[421875670,1778261935000,153.79,7.88e-05,2]
[421875674,1778261936000,153.79,9.85e-05,2]
[421875675,1778261936000,153.79,0.00010343,2]
[421875676,1778261936000,153.79,0.00010835,2]
[421875677,1778261936000,153.79,0.00011328,2]
[421875678,1778261936000,153.79,0.0001182,2]
[421875682,1778261937000,153.79,0.00013791,2]
[421875680,1778261937000,153.79,0.00012806,2]
[421875679,1778261937000,153.79,0.00012313,2]
[421875681,1778261937000,153.79,0.00013298,2]
[421875683,1778261958000,152.0,0.00013951,2]
[421875684,1778262023000,162.64,0.00013764,2]
[421875685,1778262128000,200.0,0.00013825,2]
[421875686,1778262168000,700.0,0.00022,30]
[421875687,1778262189000,670.69,0.00013786,2]
[421875688,1778262271000,1500.0,0.00030136,120]
[421875689,1778262306000,1644.0,0.00030136,120]
[421875690,1778262315000,234.0,0.00028016,120]
[421875691,1778262317000,234.0,0.00029416,120]
[421875692,1778262320000,150.0,0.00013488,2]
[421875693,1778262320000,150.0,0.00013781,2]
[421875713,1778262383000,-146865.02018508,0.00014299,2]
[421875695,1778262383000,-300.0,0.00014181,2]
[421875694,1778262383000,-2000.0,0.00014164,2]
[421875696,1778262383000,-1200.0,0.00014197,2]
[421875698,1778262383000,-23506.8756,0.00014198,2]
[421875700,1778262383000,-4963.0439,0.00014199,2]
[421875699,1778262383000,-2000.0,0.00014199,2]
[421875701,1778262383000,-2500.0,0.00014199,2]
[421875702,1778262383000,-5000.0,0.00014199,2]
[421875697,1778262383000,-150.0,0.00014198,2]
[421875705,1778262383000,-505.23000284,0.00014298,2]
[421875704,1778262383000,-442.84272874,0.00014298,2]
[421875706,1778262383000,-197.18159754,0.00014298,2]
[421875708,1778262383000,-1564.1561544,0.00014298,2]
[421875707,1778262383000,-150.0,0.00014298,2]
[421875709,1778262383000,-7067.7496457,0.00014298,2]
[421875711,1778262383000,-568.06015006,0.00014298,2]
[421875710,1778262383000,-500.0,0.00014298,2]
[421875712,1778262383000,-202.85983325,0.00014298,2]
[421875703,1778262383000,-316.98020239,0.00014211,2]
[421875714,1778262384000,-200000.0,0.00014299,2]
[421875716,1778262547000,595.6,0.00013919,2]
[421875717,1778262588000,216.58,0.00013817,2]
[421875718,1778262608000,168.0,0.00029148,120]
[421875763,1778262631000,-954.0,0.00014099,2]
[421875762,1778262631000,-2368.85985666,0.00014099,2]
[421875773,1778262632000,-534.33128684,0.00014099,2]
[421875770,1778262632000,-353.66100199,0.00014098,2]
[421875771,1778262632000,-309.98991012,0.00014098,2]
[421875767,1778262632000,-405.75392162,0.00014099,2]
[421875766,1778262632000,-7186.7434331,0.00014099,2]
[421875765,1778262632000,-19336.31148223,0.00014099,2]
[421875764,1778262632000,-87449.95965805,0.00014099,2]
[421875821,1778262638000,-607.92487087,0.00014098,2]
[421875823,1778262638000,-380.52932165,0.00014099,2]
[421875822,1778262638000,-25883.62274995,0.00014099,2]
[421876043,1778262640000,-2949.41018663,0.00014099,2]
[421876116,1778262640000,-500.0,0.00014498,2]
[421876108,1778262640000,-500.0,0.00014498,2]
[421876099,1778262640000,-500.0,0.00014498,2]
[421876114,1778262640000,-500.0,0.00014498,2]
[421876112,1778262640000,-500.0,0.00014498,2]
[421876110,1778262640000,-500.0,0.00014498,2]
[421876097,1778262640000,-500.0,0.00014498,2]
[421876095,1778262640000,-500.0,0.00014498,2]
[421876093,1778262640000,-6565.28708556,0.00014481,2]
[421876088,1778262640000,-166.15,0.00014364,2]
[421876089,1778262640000,-179.71,0.00014398,2]
[421876091,1778262640000,-150.0,0.00014399,2]
[421876086,1778262640000,-668596.07931492,0.00014299,2]
[421876083,1778262640000,-6360.97468113,0.00014298,2]
[421876081,1778262640000,-1407.74053896,0.00014298,2]
[421876077,1778262640000,-595.6,0.00014267,2]
[421876079,1778262640000,-500.0,0.00014298,2]
[421876073,1778262640000,-5000.0,0.00014199,2]
[421876075,1778262640000,-317.5113,0.00014199,2]
[421876103,1778262640000,-500.0,0.00014498,2]
[421876071,1778262640000,-72913.8935,0.00014199,2]
[421876069,1778262640000,-469.0772,0.00014199,2]
[421876062,1778262640000,-152.0,0.00014178,2]
[421876067,1778262640000,-1200.0,0.00014198,2]
[421876060,1778262640000,-346884.39590279,0.00014099,2]
[421876065,1778262640000,-300.0,0.00014198,2]
[421876064,1778262640000,-150.0,0.00014198,2]
[421876045,1778262640000,-365.54270048,0.00014099,2]
[421876084,1778262640000,-2997.35307487,0.00014298,2]
[421876105,1778262640000,-500.0,0.00014498,2]
[421876157,1778262640000,-824.24507028,0.00014847,2]
[421876101,1778262640000,-500.0,0.00014498,2]
[421876106,1778262640000,-500.0,0.00014498,2]
[421876175,1778262640000,-165193.4844488,0.00014947,2]
[421876177,1778262640000,-4706.1375794,0.00014947,2]
[421876171,1778262640000,-12104.815782,0.00014947,2]
[421876173,1778262640000,-3178.3444309,0.00014947,2]
[421876169,1778262640000,-979.0,0.00014947,5]
[421876165,1778262640000,-186.9389277,0.000149,2]
[421876161,1778262640000,-800.0,0.000149,5]
[421876155,1778262640000,-1233.0,0.00014833,5]
[421876167,1778262640000,-617.37820566,0.000149,2]
[421876153,1778262640000,-600.0,0.000148,5]
[421876163,1778262640000,-267.85289816,0.000149,2]
[421876149,1778262640000,-200.0,0.000147,5]
[421876159,1778262640000,-700.0,0.000149,5]
[421876179,1778262640000,-23566.2762155,0.00014947,2]
[421876147,1778262640000,-595.6,0.00014615,2]
[421876118,1778262640000,-500.0,0.00014498,2]
[421876120,1778262640000,-500.0,0.00014498,2]
[421876124,1778262640000,-152.0,0.00014501,7]
[421876122,1778262640000,-500.0,0.00014499,2]
[421876151,1778262640000,-500.0,0.000148,5]
[421876132,1778262640000,-2895.65,0.00014504,2]
[421876125,1778262640000,-152.0,0.00014501,7]
[421876135,1778262640000,-437.0,0.00014575,2]
[421876137,1778262640000,-578.20924308,0.00014582,2]
[421876142,1778262640000,-209.40437684,0.00014582,2]
[421876139,1778262640000,-200.0,0.00014582,2]
[421876140,1778262640000,-500.0,0.00014582,2]
[421876144,1778262640000,-2080.17592889,0.00014582,2]
[421876131,1778262640000,-5078.64,0.00014504,2]
[421876272,1778262641000,-207.99170503,0.00015387,2]
[421876270,1778262641000,-214.68143985,0.00015387,2]
[421876268,1778262641000,-160.0,0.00015387,2]
[421876248,1778262641000,-4999.99,0.0001531,2]
[421876249,1778262641000,-7840.61,0.0001531,2]
[421876260,1778262641000,-8305.03,0.0001531,2]
[421876252,1778262641000,-499.99,0.0001531,2]
[421876254,1778262641000,-299.99,0.0001531,2]
[421876256,1778262641000,-9999.99,0.0001531,2]
[421876262,1778262641000,-9999.99,0.0001531,2]
[421876264,1778262641000,-595.6,0.00015311,2]
[421876266,1778262641000,-255.0,0.0001532,2]
[421876285,1778262641000,-300.0,0.00015618,2]
[421876291,1778262641000,-500.0,0.00015618,2]
[421876274,1778262641000,-200.0,0.00015455,2]
[421876276,1778262641000,-153.1062081,0.000155,2]
[421876279,1778262641000,-503.41921174,0.00015521,2]
[421876288,1778262641000,-167.16623666,0.00015618,2]
[421876304,1778262641000,-2000.0,0.00015935,2]
[421876292,1778262641000,-1680.0,0.00015618,2]
[421876282,1778262641000,-250.0,0.00015581,2]
[421876295,1778262641000,-300.0,0.00015619,2]
[421876280,1778262641000,-216.58,0.00015544,2]
[421876297,1778262641000,-605.015601,0.00015619,2]
[421876299,1778262641000,-193.0,0.00015619,2]
[421876300,1778262641000,-250.0,0.00015619,2]
[421876258,1778262641000,-1194.72,0.0001531,2]
[421876286,1778262641000,-250.0,0.00015618,2]
[421876241,1778262641000,-1407.74053889,0.00015167,2]
[421876214,1778262641000,-1349377.84276865,0.00015,2]
[421876245,1778262641000,-200.0,0.00015301,2]
[421876181,1778262641000,-595.6,0.00014963,2]
[421876183,1778262641000,-164.30836733,0.00014973,2]
[421876185,1778262641000,-500.0,0.00014973,2]
[421876189,1778262641000,-500.0,0.00014973,2]
[421876191,1778262641000,-500.0,0.00014973,2]
[421876187,1778262641000,-501.30095539,0.00014973,2]
[421876193,1778262641000,-500.0,0.00014973,2]
[421876195,1778262641000,-500.0,0.00014973,2]
[421876198,1778262641000,-407.24,0.00014985,2]
[421876199,1778262641000,-156.25362249,0.0001499,2]
[421876202,1778262641000,-500.0,0.00014996,2]
[421876204,1778262641000,-151.0,0.00014997,2]
[421876216,1778262641000,-168.36,0.00015,2]
[421876210,1778262641000,-765072.5073167,0.00015,2]
[421876208,1778262641000,-163.0,0.00015,2]
[421876206,1778262641000,-500.0,0.00014999,2]
[421876218,1778262641000,-86680.85528358,0.00015,2]
[421876220,1778262641000,-2074.47534063,0.00015,2]
[421876232,1778262641000,-13545.22131609,0.00015045,2]
[421876226,1778262641000,-221.59415934,0.00015,2]
[421876228,1778262641000,-200.0,0.00015,2]
[421876230,1778262641000,-307.34131812,0.00015,2]
[421876224,1778262641000,-427.43301096,0.00015,2]
[421876222,1778262641000,-3129.89169063,0.00015,2]
[421876239,1778262641000,-200.0,0.0001515,2]
[421876234,1778262641000,-828.76692799,0.0001513,2]
[421876237,1778262641000,-179.18756609,0.00015141,2]
[421876243,1778262641000,-6360.97468111,0.00015167,2]
[421876308,1778262641000,-217.15233878,0.00015951,2]
[421876328,1778262641000,-1407.74053889,0.00016036,2]
[421876302,1778262641000,-156.12,0.00015869,2]
[421876370,1778262641000,-500.0,0.0001661,2]
[421876378,1778262641000,-1407.74053889,0.00016905,2]
[421876388,1778262641000,-500.8048337,0.00016986,2]
[421876390,1778262641000,-501.38126188,0.00016986,2]
[421876394,1778262641000,-901.97816903,0.00017158,2]
[421876392,1778262641000,-1000.0,0.00016986,2]
[421876384,1778262641000,-492.79005713,0.00016986,2]
[421876396,1778262641000,-501.41217628,0.00017158,2]
[421876386,1778262641000,-500.0,0.00016986,2]
[421876382,1778262641000,-350.61787901,0.00016906,2]
[421876380,1778262641000,-6360.97468111,0.00016905,2]
[421876401,1778262641000,-216.58,0.00017272,2]
[421876398,1778262641000,-2351.0,0.00017179,2]
[421876368,1778262641000,-157.09018012,0.00016584,2]
[421876403,1778262641000,-225.18697532,0.0001732,2]
[421876407,1778262641000,-624.0,0.00017397,2]
[421876416,1778262641000,-1268.0,0.00017397,2]
[421876414,1778262641000,-1352.0,0.00017397,2]
[421876418,1778262641000,-957.585,0.00017397,2]
[421876424,1778262641000,-208.157269,0.00017419,2]
[421876409,1778262641000,-773.382,0.00017397,2]
[421876420,1778262641000,-6045.0,0.00017397,2]
[421876412,1778262641000,-925.0,0.00017397,2]
[421876422,1778262641000,-155.0,0.00017398,2]
[421876426,1778262641000,-2997.35307483,0.0001767,2]
[421876428,1778262641000,-2000.0,0.00017705,2]
[421876430,1778262641000,-150.0,0.00017767,2]
[421876306,1778262641000,-155.0,0.00015948,2]
[421876405,1778262641000,-738.94777818,0.00017321,2]
[421876371,1778262641000,-500.0,0.0001661,2]
[421876336,1778262641000,-179.71,0.00016198,2]
[421876375,1778262641000,-193.4,0.00016712,2]
[421876310,1778262641000,-500.0,0.00015995,2]
[421876318,1778262641000,-500.0,0.00016022,2]
[421876314,1778262641000,-157.84052447,0.00016,2]
[421876316,1778262641000,-500.0,0.00016022,2]
[421876320,1778262641000,-500.0,0.00016022,2]
[421876322,1778262641000,-500.0,0.00016022,2]
[421876324,1778262641000,-635.77395225,0.00016022,2]
[421876326,1778262641000,-156.52,0.0001603,2]
[421876366,1778262641000,-433.0,0.00016526,2]
[421876338,1778262641000,-157.84052447,0.000162,2]
[421876346,1778262641000,-1731.9,0.00016438,2]
[421876332,1778262641000,-157.84052447,0.000161,2]
[421876330,1778262641000,-6360.97468111,0.00016036,2]
[421876312,1778262641000,-300.0,0.00016,2]
[421876340,1778262641000,-1042.529,0.00016307,2]
[421876342,1778262641000,-160.035,0.00016307,2]
[421876373,1778262641000,-461.24312421,0.0001661,2]
[421876359,1778262641000,-408.49076365,0.00016438,2]
[421876355,1778262641000,-500.0,0.00016438,2]
[421876358,1778262641000,-500.0,0.00016438,2]
[421876361,1778262641000,-500.0,0.00016438,2]
[421876364,1778262641000,-300.0,0.00016438,2]
[421876352,1778262641000,-500.0,0.00016438,2]
[421876350,1778262641000,-500.0,0.00016438,2]
[421876348,1778262641000,-502.7733834,0.00016438,2]
[421876334,1778262641000,-9999.99,0.00016116,2]
[421876344,1778262641000,-337.94496935,0.00016438,2]
[421876353,1778262641000,-592.70795494,0.00016438,2]
[421876476,1778262642000,-197.84095358,0.000185,2]
[421876507,1778262642000,-500.0,0.00018773,2]
[421876485,1778262642000,-233.51889341,0.00018689,2]
[421876487,1778262642000,-824.24507028,0.00018689,2]
[421876491,1778262642000,-1703.7,0.0001872,2]
[421876489,1778262642000,-197.84095358,0.000187,2]
[421876479,1778262642000,-1407.74053889,0.00018644,2]
[421876483,1778262642000,-168.9,0.00018688,2]
[421876482,1778262642000,-6360.97468111,0.00018644,2]
[421876509,1778262642000,-500.0,0.00018773,2]
[421876533,1778262642000,-500.0,0.00018773,2]
[421876504,1778262642000,-500.0,0.00018773,2]
[421876515,1778262642000,-150.0,0.00018773,2]
[421876525,1778262642000,-500.0,0.00018773,2]
[421876530,1778262642000,-500.0,0.00018773,2]
[421876518,1778262642000,-500.0,0.00018773,2]
[421876523,1778262642000,-500.0,0.00018773,2]
[421876528,1778262642000,-500.0,0.00018773,2]
[421876520,1778262642000,-500.0,0.00018773,2]